bitfinex/quotes_ETHUSD_20220123
["timestamp","ask_amount","ask_price","bid_price","bid_amount"]
[1642967020268,3.22218024,2395.1,2393.3,0.17947852]
[1642967020269,0.167,2394.8,2393.3,0.17947852]
[1642967020471,0.20892,2394.9,2393.3,1.60317692]
[1642967020668,0.167,2394.8,2393.3,1.43617692]
[1642967021068,0.86473196,2393.9,2393.3,1.43617692]
[1642967021269,3.13026024,2394.8,2393.5,0.81002676]
[1642967021478,0.117,2394.8,2393.4,0.167]
[1642967021692,0.01270725,2394.7,2393.4,0.09032779]
[1642967021889,0.01270725,2394.7,2392.3,1.1488]
[1642967021890,0.02459497,2394.5,2392.8,0.01202433]
[1642967022096,0.01345429,2394.3,2392.8,0.01202433]
[1642967022294,0.37602,2394.2,2392.8,0.01202433]
[1642967022496,1.37507354,2394.1,2392.8,0.01202433]
[1642967022694,0.37602,2394.0,2392.3,0.02]
[1642967022898,0.37602,2394.0,2392.7,0.01292264]
[1642967022899,0.1671,2394.0,2392.7,0.01292264]
[1642967023098,3.34684,2394.8,2392.8,0.1671]
[1642967023099,0.1671,2394.1,2392.8,0.1671]
[1642967023294,3.18036024,2394.5,2392.7,0.01292264]
[1642967023492,0.1671,2394.5,2392.8,0.1671]
[1642967023693,0.78869335,2393.7,2393.3,1.53117331]
[1642967023893,0.1671,2394.5,2393.3,2.1932021]
[1642967024098,0.1671,2394.5,2393.3,1.53117331]
[1642967024295,0.1671,2394.5,2392.8,0.1671]
[1642967024797,2.795899,2394.4,2392.8,0.1671]
[1642967024997,1.0461402,2393.9,2392.8,0.1671]
[1642967025196,5.17593996,2393.8,2392.9,1.17086236]
[1642967025437,0.6621,2393.8,2392.8,0.1671]
[1642967025636,0.495,2393.8,2392.8,0.1671]
[1642967025839,4.03781249,2393.7,2392.8,0.1671]
[1642967026042,1.0463569,2393.3,2392.3,0.02]
[1642967026242,0.37602,2393.2,2392.3,0.02]
[1642967026443,0.87102,2393.2,2392.3,0.02]
[1642967026651,0.87102,2393.2,2391.4,0.01215192]
[1642967026652,7.85,2392.8,2391.4,0.01215192]
[1642967026850,0.60362155,2391.6,2391.0,0.81302513]
[1642967027248,0.60362155,2391.6,2391.0,0.02]
[1642967028246,0.1671,2391.5,2391.0,0.02]
[1642967028446,0.1671,2391.6,2391.0,0.02]
[1642967028745,1.04704,2391.6,2391.0,0.02]
[1642967028949,1.04704,2391.6,2390.8,0.02]
[1642967028950,7.85,2391.4,2390.8,0.02]
[1642967029201,7.85,2391.4,2390.8,0.01099872]
[1642967029202,0.19575895,2391.3,2390.8,0.01099872]
[1642967029396,0.1671,2391.3,2390.8,0.01099872]
[1642967029595,0.6621,2391.3,2390.8,0.01099872]
[1642967029801,0.6621,2391.3,2390.0,0.26389636]
[1642967029802,7.85,2391.1,2390.0,0.26389636]
[1642967030003,0.05564489,2390.9,2390.0,0.26389636]
[1642967030200,0.1673,2390.8,2390.0,0.26389636]
[1642967030399,0.0203348,2390.7,2390.0,0.26389636]
[1642967030600,0.1673,2390.6,2390.0,0.26389636]
[1642967030805,0.78888236,2391.2,2390.7,0.68079421]
[1642967030806,0.95618236,2391.2,2390.7,0.68079421]
[1642967031003,0.1673,2391.2,2390.7,0.68079421]
[1642967031302,0.37602,2391.5,2390.4,0.01258245]
[1642967031502,0.1671,2391.5,2390.4,0.01258245]
[1642967031808,0.1671,2391.8,2390.4,0.01258245]
[1642967032003,0.1671,2392.0,2390.4,0.01258245]
[1642967032201,0.76003743,2391.8,2391.4,0.79067548]
[1642967032404,0.76003743,2391.8,2390.4,0.01258245]
[1642967032603,0.76003743,2391.8,2390.0,0.16389636]
[1642967032604,0.37602,2391.7,2390.0,0.16389636]
[1642967032804,0.495,2391.6,2390.0,0.16389636]
[1642967033044,0.1673,2391.5,2390.0,0.16389636]
[1642967033249,1.76057404,2391.4,2390.0,0.16389636]
[1642967033548,1.0474035,2390.9,2390.0,0.16389636]
[1642967033746,0.6623,2390.8,2390.0,0.16389636]
[1642967033944,0.6623,2390.8,2390.3,1.2252258]
[1642967034146,0.1673,2391.3,2390.3,1.2252258]
[1642967034352,0.20892,2391.7,2390.3,1.2252258]
[1642967034353,0.1673,2391.5,2390.3,1.2252258]
[1642967034548,0.70392,2391.7,2390.0,0.16389636]
[1642967034549,0.88171428,2391.2,2390.8,0.78841032]
[1642967034750,0.88171428,2391.2,2390.1,0.01220004]
[1642967034950,0.1673,2391.1,2390.1,0.01220004]
[1642967035350,0.1673,2391.1,2390.0,0.1260964]
[1642967035550,0.1673,2391.1,2390.1,1.10188673]
[1642967035751,0.1673,2391.1,2390.8,0.76065157]
[1642967035953,0.1673,2391.1,2390.8,0.68458642]
[1642967036151,0.1671,2391.3,2390.0,0.1260964]
[1642967037194,0.83585135,2390.2,2390.0,0.1260964]
[1642967037595,0.83585135,2390.2,2389.1,1.1673]
[1642967037596,7.1,2390.1,2389.1,0.1673]
[1642967037897,7.1,2390.1,2388.6,0.1673]
[1642967037898,0.01449986,2390.0,2388.6,0.1673]
[1642967038098,0.01449986,2390.0,2388.5,0.01215876]
[1642967038099,0.6623,2389.9,2388.5,0.01215876]
[1642967038297,0.67434315,2389.4,2389.0,0.79866522]
[1642967038698,0.67434315,2389.4,2388.6,1.48948514]
[1642967039297,0.1673,2389.8,2388.6,1.48948514]
[1642967039502,0.1673,2389.8,2389.0,1.35312644]
[1642967039701,3.14313,2390.3,2389.4,1.52434231]
[1642967039702,0.1673,2390.3,2389.4,1.52434231]
[1642967040197,0.495,2390.4,2390.0,0.77082627]
[1642967040198,1.33786106,2390.4,2390.0,0.77082627]
[1642967040460,0.1673,2390.8,2389.4,1.52434231]
[1642967040461,0.84211997,2390.8,2389.4,1.52434231]
[1642967040665,1.04754,2390.5,2389.0,0.01269505]
[1642967040854,0.03398093,2390.3,2389.0,0.01269505]
[1642967041052,0.495,2390.2,2388.4,0.02]
[1642967041251,0.495,2390.2,2388.4,0.03258598]
[1642967041252,0.87144,2390.1,2388.4,0.03258598]
[1642967041451,0.87144,2390.1,2388.8,0.76440263]
[1642967041654,1.87144,2390.1,2388.8,0.76440263]
[1642967042056,1.91915,2390.1,2388.8,0.76440263]
[1642967042254,0.6623,2390.1,2389.9,1.43938235]
[1642967042455,5.40735,2391.0,2389.9,1.43938235]
[1642967042456,0.91652693,2390.0,2389.9,0.01292419]
[1642967042655,3.18056024,2391.1,2389.9,0.01292419]
[1642967042854,0.1673,2391.1,2389.9,0.01292419]
[1642967043460,0.13819997,2391.2,2390.0,0.1673]
[1642967043660,0.37644,2391.0,2389.6,0.02913357]
[1642967043859,0.495,2390.9,2389.2,0.1672]
[1642967044060,0.37644,2390.8,2389.0,0.1672]
[1642967044311,0.21306851,2390.7,2388.8,0.1673]
[1642967044517,0.21306851,2390.7,2388.7,0.01235069]
[1642967044518,1.04762,2390.5,2388.9,1.48898362]
[1642967044717,0.72725466,2389.2,2388.9,1.48898362]
[1642967045012,0.20914,2389.8,2388.9,1.48898362]
[1642967045212,0.1673,2389.7,2388.9,1.50158892]
[1642967045411,3.22240024,2390.6,2389.9,1.45927306]
[1642967045412,0.1673,2390.5,2389.9,1.45927306]
[1642967045615,0.1673,2390.5,2389.5,0.01298156]
[1642967045813,1.1304,2390.9,2389.5,0.01298156]
[1642967045814,0.1673,2390.8,2389.5,0.01298156]
[1642967046212,0.1673,2390.8,2389.7,0.68914882]
[1642967046416,0.20914,2390.7,2388.7,0.1672]
[1642967046616,2.09523,2390.4,2388.8,1.35615261]
[1642967046819,2.09523,2390.4,2388.0,0.1673]
[1642967046820,0.00684378,2390.2,2388.1,0.01243266]
[1642967047015,0.87144,2390.1,2388.1,0.01243266]
[1642967047221,0.87144,2390.1,2388.0,0.1673]
[1642967047222,0.03507315,2389.9,2388.0,0.1673]
[1642967047428,0.87144,2389.8,2388.4,0.00995476]
[1642967047614,3.06611373,2389.7,2388.4,0.00995476]
[1642967047815,0.03645664,2389.5,2388.4,0.00995476]
[1642967048051,0.01440656,2389.3,2388.4,0.00995476]
[1642967048253,0.87144,2389.2,2388.4,0.00995476]
[1642967048650,0.77268123,2388.8,2388.4,0.00995476]
[1642967049250,0.1673,2388.7,2388.4,0.00995476]
[1642967049453,0.1673,2389.0,2388.4,0.00995476]
[1642967049653,0.1673,2389.3,2388.4,0.00995476]
[1642967049859,0.20914,2389.6,2388.4,0.00995476]
[1642967050052,0.1673,2389.7,2388.4,0.00995476]
[1642967050451,0.73515822,2389.3,2388.4,0.00995476]
[1642967050656,0.73515822,2389.3,2388.7,1.44274051]
[1642967050861,1.21517,2389.7,2389.5,1.12956833]
[1642967050862,0.1673,2389.7,2389.5,1.12956833]
[1642967051052,3.2004298,2390.2,2388.7,0.01271974]
[1642967051053,0.37644,2390.2,2388.7,0.01271974]
[1642967051254,0.20914,2390.2,2388.7,0.01271974]
[1642967051693,0.76315314,2389.6,2389.2,0.91484462]
[1642967051895,0.76315314,2389.6,2388.7,0.01271974]
[1642967052303,2.9912898,2389.5,2388.4,0.00995476]
[1642967052502,0.70414,2389.4,2388.4,0.00995476]
[1642967052699,0.1673,2389.3,2388.4,0.00995476]
[1642967052899,0.20914,2389.2,2388.4,0.00995476]
[1642967053103,1.21542,2389.1,2388.4,0.00995476]
[1642967053305,0.20914,2389.0,2388.4,0.00995476]
[1642967053503,0.07644,2389.0,2388.4,0.00995476]
[1642967053705,0.1187,2388.9,2388.4,0.00995476]
[1642967053904,0.0617,2388.9,2388.4,0.00995476]
[1642967054108,0.77824959,2388.8,2388.4,0.00995476]
[1642967054308,0.77824959,2388.8,2387.6,0.02]
[1642967054309,0.02696659,2388.5,2387.6,0.02]
[1642967054510,0.00526899,2387.8,2387.6,0.0001]
[1642967055449,0.00526899,2387.8,2387.7,1.23377064]
[1642967055642,0.00526899,2387.8,2387.7,1.24672024]
[1642967055844,0.00526899,2387.8,2387.7,1.45615024]
[1642967056042,6.899e-05,2387.8,2387.7,2.0200796]
[1642967056248,9.2497,2389.9,2387.8,7.85]
[1642967056249,3.1587898,2389.8,2387.8,7.85]
[1642967056442,3.4647,2390.2,2387.8,7.85]
[1642967056443,0.0617,2390.0,2388.6,0.01210154]
[1642967056647,0.0617,2390.0,2388.7,0.05646755]
[1642967056854,3.632,2390.2,2388.8,0.20943]
[1642967056855,0.1673,2389.9,2388.8,0.20943]
[1642967057049,0.93197703,2390.3,2389.7,1.50390166]
[1642967057250,0.1673,2390.7,2389.8,0.09725173]
[1642967057460,0.0617,2390.9,2389.2,0.1673]
[1642967057855,1.1091115,2390.9,2389.2,0.1673]
[1642967058053,2.095345,2390.5,2389.2,0.1673]
[1642967058253,0.6623,2390.4,2388.5,0.20943]
[1642967058652,0.69455677,2388.8,2388.3,2.05724663]
[1642967058851,0.495,2389.6,2388.3,1.39431593]
[1642967059053,1.0480619,2389.4,2387.7,0.1673]
[1642967059292,1.0480619,2389.4,2387.2,7.43]
[1642967059293,0.01202506,2389.1,2387.3,0.0123166]
[1642967059495,0.1673,2389.0,2387.3,0.0123166]
[1642967059894,0.1673,2389.2,2388.3,0.82810586]
[1642967060093,0.3,2388.8,2387.3,0.0123166]
[1642967060300,0.0617,2389.1,2387.1,0.007]
[1642967060301,0.2292,2388.7,2387.1,0.007]
[1642967060504,0.5567,2388.7,2387.1,0.007]
[1642967060695,0.1675,2388.6,2387.1,0.007]
[1642967060892,0.5567,2388.5,2387.1,0.007]
[1642967061098,0.5567,2388.5,2387.7,1.33125568]
[1642967061099,0.1675,2388.4,2387.7,1.33125568]
[1642967061495,0.1675,2388.4,2387.2,0.01257697]
[1642967061696,0.0617,2388.5,2387.2,0.01257697]
[1642967062097,0.82585966,2388.0,2387.5,0.06385954]
[1642967062499,0.1675,2388.6,2387.5,1.34805623]
[1642967062939,0.1675,2388.6,2387.2,0.01257697]
[1642967063146,0.0617,2388.5,2387.2,0.01257697]
[1642967063342,0.1675,2388.4,2387.2,0.01257697]
[1642967063542,0.1675,2388.6,2387.2,0.01257697]
[1642967063743,0.8682907,2387.8,2387.2,0.01257697]
[1642967063944,0.8682907,2387.8,2387.5,1.45706266]
[1642967064143,0.1675,2388.6,2387.2,0.01257697]
[1642967064747,0.1675,2388.6,2387.3,0.1921326]
[1642967064945,0.13819997,2388.7,2387.4,0.1921326]
[1642967065144,0.13819997,2388.7,2387.2,0.01257697]
[1642967065145,0.13819997,2388.7,2387.7,1.14413359]
[1642967065547,0.0617,2388.6,2387.2,0.01257697]
[1642967065749,0.0617,2388.6,2387.1,0.007]
[1642967065750,2.75949,2388.5,2387.1,0.007]
[1642967066147,1.0,2388.4,2387.1,0.007]
[1642967066345,0.1675,2388.3,2387.1,0.007]
[1642967066792,0.0617,2388.2,2387.1,0.007]
[1642967066993,0.1675,2388.1,2387.1,0.007]
[1642967067194,0.1675,2388.1,2387.3,1.31565255]
[1642967067395,0.1675,2388.1,2387.1,0.01938778]
[1642967067996,0.74697374,2387.3,2387.1,0.01938778]
[1642967068197,0.1675,2388.1,2387.2,0.0433012]
[1642967068406,0.1675,2388.1,2387.7,1.52377459]
[1642967068700,0.1675,2389.0,2387.8,0.1921326]
[1642967068901,2.09402889,2389.5,2388.3,0.0120843]
[1642967068902,0.13819997,2389.5,2388.3,0.0120843]
[1642967069096,0.9141206,2388.9,2388.5,0.1464324]
[1642967069297,0.13819997,2389.5,2388.5,0.1464324]
[1642967069298,0.13819997,2389.5,2388.5,0.11589813]
[1642967069599,0.13819997,2389.5,2388.6,1.35556329]
[1642967069799,3.11792453,2389.5,2388.3,0.0120843]
[1642967070002,0.1673,2389.4,2387.1,0.1743]
[1642967070197,0.495,2389.3,2387.2,0.01206263]
[1642967070446,0.495,2389.3,2387.1,0.1483811]
[1642967070447,7.86240723,2389.1,2387.1,0.1483811]
[1642967070649,0.724,2389.0,2387.2,0.1921326]
[1642967070852,0.84187973,2388.2,2387.7,0.79757159]
[1642967071060,0.84187973,2388.2,2387.5,1.16270452]
[1642967071854,0.0617,2388.1,2387.1,0.1483811]
[1642967072057,0.85197098,2387.6,2387.1,0.13636263]
[1642967072453,0.0617,2388.3,2387.1,0.13636263]
[1642967072454,0.1675,2388.2,2387.1,0.13636263]
[1642967073661,0.76102534,2387.4,2387.0,1.50965293]
[1642967073860,0.0617,2388.3,2387.0,1.50965293]
[1642967073861,0.1675,2388.2,2387.0,0.02]
[1642967074302,0.1675,2388.2,2386.6,7.46250312]
[1642967074303,7.85,2388.0,2386.6,7.46250312]
[1642967074505,7.85,2388.0,2386.6,0.02]
[1642967074506,0.05935786,2387.8,2386.6,0.02]
[1642967074703,0.1675,2387.9,2386.6,0.02]
[1642967074704,0.02592324,2387.6,2386.6,0.02]
[1642967074904,0.7242,2387.7,2386.6,0.02]
[1642967074905,0.8133751,2387.4,2386.6,0.02]
[1642967075101,0.86255801,2386.7,2386.6,0.02]
[1642967075306,5.68e-06,2386.7,2386.6,0.02]
[1642967075699,0.1675,2387.3,2386.6,0.02]
[1642967076407,0.1675,2388.0,2386.7,0.1921326]
[1642967076607,1.6227,2388.2,2386.7,0.1921326]
[1642967076608,0.77504431,2387.6,2386.7,0.1921326]
[1642967076803,0.1675,2388.2,2387.2,0.74894165]
[1642967077214,0.1675,2388.2,2387.3,0.1921326]
[1642967077414,0.13819997,2388.5,2387.7,1.23752344]
[1642967077611,0.13819997,2388.5,2387.2,0.74894165]
[1642967077811,0.13819997,2388.5,2387.2,0.64894165]
[1642967078047,0.1675,2388.4,2387.6,0.09301714]
[1642967078246,0.1675,2388.4,2387.1,0.01264684]
[1642967078455,0.0617,2388.3,2386.6,0.02]
[1642967078651,0.30569997,2388.2,2386.6,0.02]
[1642967078856,1.04879,2387.6,2386.6,0.02]
[1642967079048,0.7242,2387.5,2386.6,0.02]
[1642967079248,0.82177679,2386.9,2386.6,0.02]
[1642967079451,0.82177679,2386.9,2386.6,0.01528347]
[1642967079452,7.9117,2386.7,2386.6,0.01528347]
[1642967079651,7.9117,2386.7,2386.6,0.00359451]
[1642967079652,0.1675,2386.7,2386.6,0.00359451]
[1642967079850,0.495,2386.8,2386.6,0.00359451]
[1642967080047,0.1675,2387.3,2386.6,0.00359451]
[1642967080249,0.1675,2387.4,2386.6,0.00359451]
[1642967080650,0.1675,2387.6,2386.6,0.00359451]
[1642967080852,0.495,2388.0,2386.6,0.00359451]
[1642967081056,0.1675,2388.1,2387.2,0.7350088]
[1642967081899,0.1675,2388.1,2386.6,0.00359451]
[1642967082501,1.04866,2387.9,2386.6,0.00359451]
[1642967082704,3.1274093,2387.8,2386.6,0.00359451]
[1642967082910,1.04899,2387.6,2386.6,0.00359451]
[1642967083124,6.21687687,2386.7,2386.6,0.00359451]
[1642967083503,6.38437687,2386.7,2386.6,0.00359451]
[1642967083912,7.85,2386.6,2386.3,0.02]
[1642967084112,7.85,2386.6,2386.2,0.02]
[1642967084113,0.70976043,2386.5,2386.2,0.02]
[1642967084405,0.6626,2386.5,2386.2,0.02]
[1642967084604,0.6626,2386.5,2386.3,0.04035807]
[1642967084807,0.1676,2386.7,2386.4,0.7393649]
[1642967085014,0.2904,2386.8,2386.3,0.04035807]
[1642967086051,0.2904,2386.8,2386.6,1.2884564]
[1642967087454,0.2904,2386.8,2386.6,0.53604793]
[1642967088257,0.2404,2386.8,2386.6,0.53604793]
[1642967088454,0.2404,2386.8,2386.7,0.1921326]
[1642967088655,0.2279,2387.7,2386.7,0.20416403]
[1642967089055,0.2279,2387.7,2387.3,0.74972517]
[1642967089521,0.2279,2387.7,2387.4,0.1921326]
[1642967089815,0.2279,2387.7,2387.6,1.73810868]
[1642967090315,0.2279,2387.7,2387.6,0.1921326]
[1642967090517,0.2279,2387.7,2387.3,0.51362751]
[1642967091016,0.2279,2387.7,2387.4,0.1921326]
[1642967091222,0.2279,2387.7,2387.3,0.81362751]
[1642967091223,0.2279,2387.7,2387.3,0.51362751]
[1642967091423,0.2279,2387.7,2387.4,1.3228852]
[1642967091626,0.2279,2387.7,2387.4,1.5150178]
[1642967092226,0.2279,2387.7,2387.6,0.1921326]
[1642967092822,0.2279,2387.7,2387.4,1.3228852]
[1642967093047,0.2279,2387.7,2387.0,0.1675]
[1642967093246,0.2279,2387.7,2387.1,0.1921326]
[1642967093447,0.2279,2387.7,2387.0,0.1675]
[1642967093648,0.2279,2387.7,2386.9,0.1921326]
[1642967094045,0.79509657,2387.4,2387.0,1.92396495]
[1642967094654,0.2279,2387.7,2387.4,1.24785799]
[1642967094852,4.69634302,2388.2,2387.4,1.24785799]
[1642967095047,0.1675,2388.4,2387.4,1.24785799]
[1642967095048,4.69634302,2388.4,2388.0,1.48752907]
[1642967095248,4.69634302,2388.4,2388.0,0.6278595]
[1642967095457,4.69634302,2388.4,2387.4,0.1675]
[1642967095652,0.6771695,2388.4,2387.4,0.1675]
[1642967095850,5.37351252,2388.4,2387.5,0.1921326]
[1642967096051,4.69634302,2388.2,2387.4,0.1675]
[1642967096350,3.74308599,2388.3,2387.4,0.1675]
[1642967096351,4.86384302,2388.1,2387.4,0.1675]
[1642967096551,4.69634302,2388.1,2387.6,1.34325337]
[1642967096795,4.86384302,2388.3,2387.7,0.86490464]
[1642967097108,4.69634302,2388.2,2387.4,0.1675]
[1642967098000,4.69634302,2388.2,2387.7,1.83078149]
[1642967098201,0.13819997,2388.5,2387.7,1.16704288]
[1642967098401,4.71881668,2388.3,2387.4,0.1921326]
[1642967098602,4.71881668,2388.3,2387.3,0.1675]
[1642967098799,0.13819997,2388.5,2387.0,0.01267425]
[1642967098800,4.88631668,2388.4,2387.4,0.1921326]
[1642967099001,4.88631668,2388.4,2387.1,0.3596326]
[1642967099203,4.71881668,2388.3,2387.1,0.3596326]
[1642967099401,4.71881668,2388.3,2387.5,1.23413264]
[1642967099705,4.71881668,2388.3,2387.3,0.1921326]
[1642967099905,0.1675,2388.2,2387.3,0.1921326]
[1642967100302,4.88631668,2388.4,2387.1,0.3596326]
[1642967100557,4.88631668,2388.4,2387.0,0.75329276]
[1642967100558,4.88631668,2388.4,2387.5,1.45864915]
[1642967100755,4.88631668,2388.4,2387.3,0.1921326]
[1642967100957,4.88631668,2388.4,2387.0,0.75329276]
[1642967101161,8.39542527,2388.3,2387.0,0.75329276]
[1642967101372,0.8046964,2387.5,2387.0,0.75329276]
[1642967101559,4.88631668,2388.2,2387.0,0.75329276]
[1642967101758,4.88631668,2388.2,2386.8,0.3596326]
[1642967101759,3.725471,2388.1,2386.8,0.3596326]
[1642967101962,4.88631668,2388.0,2386.8,0.1675]
[1642967102159,4.71881668,2387.8,2386.8,0.1675]
[1642967102366,0.1675,2387.7,2386.8,0.1675]
[1642967102758,0.93370662,2386.9,2386.8,0.1675]
[1642967102962,0.1675,2387.7,2386.8,0.1675]
[1642967103363,3.99758807,2387.8,2386.8,0.1675]
[1642967103564,3.83008807,2387.8,2386.8,0.07416667]
[1642967103862,0.1675,2387.7,2386.8,0.07416667]
[1642967104063,0.76264636,2386.9,2386.8,0.07416667]
[1642967104293,0.1675,2387.7,2386.8,0.07416667]
[1642967104694,0.1675,2387.8,2386.8,0.07416667]
[1642967105294,0.65908279,2386.9,2386.8,0.07416667]
[1642967105495,4.20845237,2387.8,2386.8,0.07416667]
[1642967105694,0.1675,2387.8,2386.8,0.07416667]
[1642967106100,0.1675,2387.8,2386.3,0.04035807]
[1642967106101,6.23702834,2387.7,2386.3,0.04035807]
[1642967106299,6.23702834,2387.5,2386.3,0.04035807]
[1642967106500,6.23702834,2387.3,2386.3,0.04035807]
[1642967106797,6.40452834,2387.2,2386.3,0.04035807]
[1642967106999,4.63757541,2386.4,2386.3,0.04035807]
[1642967108650,0.6626,2387.0,2386.3,0.04035807]
[1642967108856,0.1676,2387.0,2386.4,1.43929941]
[1642967109053,0.1675,2387.2,2386.4,1.43929941]
[1642967109252,0.6625,2387.6,2386.3,0.04035807]
[1642967109453,0.6625,2387.6,2386.8,0.19385704]
[1642967109654,0.6625,2387.6,2386.8,0.13560987]
[1642967109856,0.1675,2387.6,2386.8,0.13560987]
[1642967110065,6.40452834,2387.8,2386.8,0.13560987]
[1642967110255,0.13819997,2388.5,2387.7,1.49520327]
[1642967110256,6.35452834,2388.1,2387.7,1.49520327]
[1642967110453,0.13819997,2388.5,2387.0,0.01231891]
[1642967110454,0.82029987,2387.4,2387.0,0.01231891]
[1642967110852,0.82029987,2387.4,2387.1,0.56018086]
[1642967111054,0.80707722,2388.3,2387.1,0.3]
[1642967111255,0.80707722,2388.3,2387.2,0.02913688]
[1642967111451,0.13819997,2388.5,2387.2,0.02913688]
[1642967111452,0.1675,2388.4,2387.8,1.25889614]
[1642967111697,0.13819997,2388.5,2387.2,0.1921326]
[1642967111891,0.13819997,2388.5,2387.0,0.01231891]
[1642967112091,0.1675,2388.4,2387.1,0.1921326]
[1642967112293,0.13819997,2388.5,2387.1,0.1921326]
[1642967112492,0.13819997,2388.5,2387.0,0.50731891]
[1642967112697,0.13819997,2388.5,2387.8,0.73152831]
[1642967113298,0.13819997,2389.0,2388.1,1.51194765]
[1642967113502,0.01267565,2389.2,2388.1,1.51194765]
[1642967113503,7.79628543,2389.2,2388.8,1.38784807]
[1642967113702,1.0036,2389.3,2389.1,0.5961037]
[1642967114100,1.0036,2389.3,2389.2,1.44352645]
[1642967114701,7.96358543,2390.2,2389.3,7.8]
[1642967114907,0.69235535,2390.1,2389.7,0.73152831]
[1642967115108,0.1673,2390.5,2389.4,1.0]
[1642967115109,7.79628543,2390.5,2389.4,1.0]
[1642967115308,0.1673,2391.1,2389.5,0.1921326]
[1642967115309,6.34090955,2390.4,2389.5,0.1921326]
[1642967115566,10.04071818,2391.1,2389.5,0.1921326]
[1642967115567,6.34090955,2390.5,2389.5,0.1921326]
[1642967115966,6.34090955,2390.5,2389.6,25.95470593]
[1642967116170,0.1673,2391.1,2389.9,0.01268311]
[1642967116171,6.34090955,2390.8,2389.9,0.01268311]
[1642967116369,0.0026996,2391.7,2389.9,0.01268311]
[1642967116370,6.34090955,2391.0,2390.1,1.32466191]
[1642967116568,6.34090955,2391.5,2390.2,0.8544326]
[1642967116771,17.66970361,2391.8,2391.7,1.25568536]
[1642967116772,6.34090955,2391.8,2391.7,1.25568536]
[1642967116970,0.84470364,2391.4,2391.3,0.1921326]
[1642967117166,0.84470364,2391.4,2391.3,0.68918395]
[1642967117371,6.34090955,2392.2,2391.3,0.1921326]
[1642967117570,0.01515009,2392.3,2391.3,0.1921326]
[1642967117571,0.01245049,2392.3,2391.3,0.88399191]
[1642967117769,6.34090955,2392.5,2391.4,0.20908]
[1642967117976,6.34090955,2392.5,2392.2,1.18378244]
[1642967118170,6.34090955,2392.7,2392.2,1.18378244]
[1642967118369,0.90363044,2392.7,2392.6,1.13364532]
[1642967118571,0.90363044,2392.7,2392.5,0.3124]
[1642967118871,0.90363044,2392.7,2391.6,0.1671]
[1642967119074,4.13010685,2392.6,2391.3,0.1671]
[1642967119311,0.28714,2392.6,2391.3,0.1671]
[1642967119515,9.10103684,2393.4,2391.3,0.1671]
[1642967119516,7.79628543,2393.2,2391.5,7.8]
[1642967119713,7.79628543,2393.2,2391.7,0.04197164]
[1642967119714,7.43,2393.2,2391.7,0.04197164]
[1642967119917,0.01277551,2393.6,2392.0,5.0]
[1642967119918,0.0026996,2393.6,2392.0,5.0]
[1642967120114,0.0026996,2393.6,2393.1,0.01250525]
[1642967120312,0.1671,2395.0,2393.2,0.37618]
[1642967120519,25.66394016,2395.2,2393.6,0.08502801]
[1642967120520,0.167,2395.2,2393.6,0.08502801]
[1642967120712,0.167,2395.5,2393.9,1.04489]
[1642967120908,8.36,2396.2,2395.4,1.40400633]
[1642967120909,0.167,2396.1,2395.4,1.40400633]
[1642967121114,0.167,2396.1,2394.7,0.495]
[1642967121115,0.73279291,2394.8,2394.7,0.495]
[1642967121313,7.43,2396.4,2394.8,6.55]
[1642967121510,0.69223973,2395.8,2395.5,0.93676596]
[1642967121716,0.64223973,2395.8,2394.7,0.53356]
[1642967121916,0.1668,2395.7,2394.7,0.33856]
[1642967122115,0.17003,2396.2,2394.5,0.53356]
[1642967122315,0.1668,2396.1,2394.5,0.33856]
[1642967122520,0.1668,2396.4,2394.6,3.55591706]
[1642967122720,1.044775,2397.0,2394.6,3.55591706]
[1642967122721,0.21715805,2397.7,2395.5,5.0]
[1642967122953,0.01279523,2398.5,2395.8,1.18421689]
[1642967123165,0.86587986,2398.7,2395.8,1.18421689]
[1642967123166,0.0026998,2398.6,2396.9,0.01205863]
[1642967123354,0.0026998,2398.6,2397.7,0.01207101]
[1642967123558,0.0026998,2398.6,2398.5,1.24555999]
[1642967123761,0.0026998,2399.7,2397.8,0.54599549]
[1642967124057,6.83553991,2400.0,2398.8,0.72266346]
[1642967124058,0.2526998,2400.0,2398.8,0.72266346]
[1642967124459,0.2526998,2400.0,2398.5,0.495]
[1642967124655,7.88685181,2399.9,2398.4,1.22202134]
[1642967124858,7.88685181,2399.9,2397.5,0.17870841]
[1642967124859,3.17150706,2399.8,2397.5,0.17870841]
[1642967125059,0.495,2399.7,2397.2,1.0]
[1642967125254,3.22160706,2399.6,2397.0,0.13819997]
[1642967125460,1.26829898,2399.5,2398.6,0.13560987]
[1642967125659,1.26829898,2399.5,2396.7,0.1666]
[1642967125660,0.08569067,2398.0,2396.7,0.1666]
[1642967125859,0.08569067,2398.0,2397.1,1.15391553]
[1642967126053,0.08569067,2398.0,2396.8,0.495]
[1642967126054,0.08569067,2398.0,2397.2,0.1668]
[1642967126256,0.17254248,2398.0,2396.9,0.1668]
[1642967126454,0.17254248,2398.0,2397.3,0.81930269]
[1642967126455,0.08569067,2398.0,2397.3,0.81930269]
[1642967126700,0.08569067,2398.0,2396.6,0.1668]
[1642967126904,0.1197,2397.9,2396.6,0.1668]
[1642967127107,0.1197,2397.9,2395.3,7.3733]
[1642967127108,0.20829,2397.8,2395.9,0.50741316]
[1642967127303,4.93398958,2397.8,2395.3,1.1813]
[1642967127504,0.85504181,2397.8,2395.3,0.495]
[1642967127702,0.88894499,2396.6,2396.3,0.66339743]
[1642967127903,0.495,2397.6,2395.8,0.1668]
[1642967128104,0.495,2397.6,2396.3,1.29388112]
[1642967128105,0.20853,2397.3,2396.3,1.29388112]
[1642967128309,0.495,2397.6,2396.3,1.29388112]
[1642967128310,0.40353,2397.6,2396.3,1.29388112]
[1642967128505,0.02833,2397.5,2395.7,0.15098074]
[1642967128706,3.03273631,2397.5,2395.7,0.15098074]
[1642967128906,0.495,2397.4,2395.7,0.15098074]
[1642967129108,0.495,2397.4,2395.8,0.86033234]
[1642967129307,0.08685181,2397.3,2395.7,0.15098074]
[1642967129512,0.08685181,2397.3,2395.7,0.01278077]
[1642967129513,0.52333,2397.2,2395.7,0.01278077]
[1642967129708,0.52333,2397.2,2394.5,0.495]
[1642967129709,0.0203583,2395.3,2394.6,0.1668]
[1642967129913,0.0203583,2395.3,2394.6,0.01218787]